fUSD/lending_fUSD_20250606
["ID","MTS","AMOUNT","RATE_DAILY","PERIOD"]
[364639711,1749172241262,-226.63894077,0.00029942,2]
[364639713,1749172241276,-500.0,0.00029942,2]
[364639715,1749172241286,-500.0,0.00029942,2]
[364639717,1749172241298,-500.0,0.00029942,2]
[364639719,1749172241308,-500.0,0.00029942,2]
[364639721,1749172241319,-500.0,0.00029942,2]
[364639723,1749172241331,-179.054632,0.00029943,2]
[364639726,1749172241343,-5782.40739203,0.00029943,2]
[364639728,1749172241354,-2500.0,0.00029943,2]
[364639730,1749172241365,-1209.22,0.00029984,2]
[364639732,1749172241377,-1162.5,0.00029984,2]
[364639734,1749172241388,-179.0,0.0003,3]
[364639737,1749172241399,-179.0,0.0003,4]
[364639739,1749172241410,-179.0,0.0003,15]
[364639741,1749172241422,-179.0,0.0003,10]
[364639743,1749172241433,-179.0,0.0003,20]
[364639746,1749172241445,-179.0,0.0003,14]
[364639748,1749172241456,-300.0,0.0003,30]
[364639750,1749172241469,-161.0,0.0003,14]
[364639752,1749172241482,-5782.40739194,0.00030011,2]
[364639755,1749172241495,-200.11525808,0.00030033,2]
[364639757,1749172241506,-2296.2444581,0.00030033,2]
[364639759,1749172241522,-500.0,0.00030043,2]
[364639761,1749172241535,-7463.7652,0.00030043,2]
[364639764,1749172241546,-105378.6759,0.00030043,2]
[364639766,1749172241558,-1000.0,0.00030043,2]
[364639768,1749172241570,-168.42244673,0.00030064,2]
[364639770,1749172241582,-373.11640237,0.00030064,2]
[364639773,1749172241595,-891.25856568,0.00030064,2]
[364639775,1749172241605,-5782.40739194,0.00030079,2]
[364639777,1749172241615,-2296.24445807,0.00030091,2]
[364639779,1749172241624,-30573.0310662,0.000301,4]
[364639781,1749172241634,-156.587,0.00030113,2]
[364639783,1749172241644,-215.0738,0.00030113,2]
[364639785,1749172241654,-8484.82200735,0.0003012,2]
[364639787,1749172241664,-2348.29725,0.0003013,2]
[364639789,1749172241673,-2348.29725,0.0003013,2]
[364639791,1749172241683,-2348.29725,0.0003013,2]
[364639793,1749172241692,-2348.29725,0.0003013,2]
[364639795,1749172241701,-169502.658418,0.00030133,2]
[364639797,1749172241711,-28208.7464549,0.00030133,2]
[364639799,1749172241720,-12107.3327441,0.00030133,2]
[364639801,1749172241730,-14104.3732275,0.00030133,2]
[364639835,1749172242169,-172.89,0.00030137,80]
[364639839,1749172242201,-249.23896607,0.00030142,2]
[364639842,1749172242223,-188.19845454,0.00030142,2]
[364639844,1749172242233,-301.9406833,0.00030142,2]
[364639846,1749172242242,-221.70967804,0.00030142,2]
[364639848,1749172242251,-91396.90920586,0.00030143,4]
[364640124,1749172245498,-205.0,0.00024326,2]
[364640125,1749172245508,-205.0,0.0002707,6]
[364640126,1749172245519,-205.0,0.00029814,10]
[364640127,1749172245528,-2195.25720902,0.00030033,2]
[364640145,1749172246182,-1033.88123254,0.00030033,2]
[364640162,1749172258574,555.0,0.00035616,120]
[364640163,1749172278265,500.0,0.00035616,120]
[364640164,1749172304673,155.88,0.00035616,120]
[364640165,1749172363904,181.7,0.00028926,120]
[364640169,1749172671241,1380.7498207,0.00035616,120]
[364640170,1749172688869,655.0,0.00035616,120]
[364640173,1749172801889,198.92435366,0.000356,120]
[364640174,1749172832184,4555.0,0.00035616,120]
[364640175,1749172858938,1111.0,0.00035616,120]
[364640177,1749172891572,159.16,0.00013699,2]
[364640178,1749172892171,5788.40736899,0.0003561,120]
[364640185,1749173013759,500.0,0.00035616,120]
[364640198,1749173225204,161.44,0.0003516,120]
[364640219,1749173275823,1121.95055271,0.00015,10]
[364640221,1749173316219,2042.599999,0.000151,2]
[364640224,1749173430302,2000.0,0.00035,120]
[364640241,1749173431530,-364.9431,0.000199,3]
[364640242,1749173431967,-416.34654294,0.000199,3]
[364640243,1749173431977,-432.38019586,0.0002,2]
[364640244,1749173431989,-62276.32885622,0.0002,2]
[364640245,1749173431999,-22037.1337756,0.0002,2]
[364640246,1749173432008,-151.0,0.00020418,2]
[364640247,1749173432019,-205.0,0.0002078,2]
[364640248,1749173432028,-205.0,0.0002137,2]
[364640249,1749173432038,-205.0,0.0002196,2]
[364640250,1749173432048,-205.0,0.0002254,2]
[364640251,1749173432057,-205.0,0.0002313,2]
[364640252,1749173432067,-205.0,0.0002371,2]
[364640253,1749173432076,-500.0,0.00023989,2]
[364640254,1749173432086,-157.84213544,0.00023989,2]
[364640255,1749173432096,-9360.53314923,0.0002399,2]
[364640264,1749173437753,-1414.48647876,0.0002399,2]
[364640265,1749173437764,-10769.22653757,0.0002399,2]
[364640266,1749173437774,-5000.0,0.00024,5]
[364640268,1749173437783,-205.0,0.000243,2]
[364640270,1749173437792,-413.51421697,0.000244,11]
[364640272,1749173437801,-413.51421681,0.000244,11]
[364640273,1749173437811,-413.51421681,0.000244,11]
[364640275,1749173437820,-413.51421681,0.000244,11]
[364640277,1749173437829,-413.51421681,0.000244,11]
[364640279,1749173437839,-413.51421681,0.000244,11]
[364640282,1749173437848,-413.51421681,0.00024417,11]
[364640284,1749173437858,-422.0,0.00024879,2]
[364640286,1749173437868,-455.0,0.00024879,2]
[364640289,1749173437877,-2222.0,0.00024879,2]
[364640292,1749173437887,-639.8094589,0.00024879,2]
[364640294,1749173437896,-205.0,0.0002488,2]
[364640296,1749173437906,-544.0,0.00024931,2]
[364640298,1749173437915,-500.0,0.00024932,2]
[364640300,1749173437925,-941.42,0.0002498,2]
[364640302,1749173437934,-848.73,0.0002498,5]
[364640304,1749173437943,-413.51421681,0.00025003,12]
[364640306,1749173437953,-196.0,0.00025178,2]
[364640308,1749173437962,-205.0,0.0002547,2]
[364640310,1749173437972,-255.0,0.0002547,2]
[364640312,1749173437981,-413.51421681,0.0002559,13]
[364640314,1749173437991,-205.0,0.0002605,2]
[364640316,1749173437999,-413.51421681,0.00026176,14]
[364640318,1749173438009,-301.68,0.00026231,2]
[364640320,1749173438018,-250.0,0.00026294,2]
[364640322,1749173438027,-1010.5,0.00026352,2]
[364640324,1749173438036,-205.0,0.0002664,2]
[364640326,1749173438045,-413.51421681,0.00026762,15]
[364640328,1749173438055,-205.0,0.0002722,2]
[364640330,1749173438065,-413.51421681,0.00027348,16]
[364640332,1749173438074,-500.0,0.00027397,2]
[364640334,1749173438083,-500.0,0.00027397,2]
[364640336,1749173438093,-500.0,0.00027397,2]
[364640338,1749173438102,-500.0,0.00027397,2]
[364640340,1749173438111,-500.0,0.00027397,2]
[364640342,1749173438121,-500.0,0.00027397,2]
[364640344,1749173438131,-500.0,0.00027397,2]
[364640346,1749173438140,-500.0,0.00027397,2]
[364640348,1749173438150,-500.0,0.00027397,2]
[364640350,1749173438159,-500.0,0.00027397,2]
[364640352,1749173438168,-235.68500166,0.00027397,2]
[364640354,1749173438178,-500.0,0.00027397,2]
[364640356,1749173438187,-500.0,0.00027397,2]
[364640358,1749173438196,-500.0,0.00027397,2]
[364640360,1749173438206,-500.0,0.00027397,2]
[364640362,1749173438215,-500.0,0.00027397,2]
[364640365,1749173438225,-500.0,0.00027397,2]
[364640367,1749173438235,-500.0,0.00027397,2]
[364640369,1749173438244,-500.0,0.00027397,2]
[364640371,1749173438253,-500.0,0.00027397,2]
[364640373,1749173438263,-500.0,0.00027397,2]
[364640375,1749173438272,-500.0,0.00027397,2]
[364640377,1749173438282,-500.0,0.00027397,2]
[364640379,1749173438292,-500.0,0.00027397,2]
[364640381,1749173438302,-500.0,0.00027397,2]
[364640383,1749173438311,-500.0,0.00027397,2]
[364640385,1749173438321,-177.209099,0.00027397,2]
[364640387,1749173438330,-500.0,0.00027397,2]
[364640389,1749173438340,-168.80830042,0.00027397,2]
[364640391,1749173438350,-152.27,0.00027397,2]
[364640393,1749173438359,-1000.0,0.00027502,2]
[364640395,1749173438369,-2214.62,0.00027601,30]
[364640397,1749173438379,-23900.0,0.00027711,2]
[364640399,1749173438388,-157.62,0.00027791,2]
[364640401,1749173438397,-205.0,0.0002781,2]
[364640403,1749173438407,-150.0,0.00027873,7]
[364640405,1749173438416,-413.51421681,0.00027934,18]
[364640407,1749173438426,-250.0,0.0002827,2]
[364640409,1749173438435,-1320.47,0.00028301,2]
[364640411,1749173438445,-1302.6,0.00028322,2]
[364640413,1749173438455,-205.0,0.0002839,2]
[364640415,1749173438464,-413.51421681,0.00028521,19]
[364640417,1749173438474,-150.53,0.000286,2]
[364640419,1749173438483,-210.0,0.0002861,2]
[364640421,1749173438493,-1010.5,0.00028616,2]
[364640423,1749173438503,-151.0,0.00028744,2]
[364640425,1749173438512,-500.0,0.00028744,2]
[364640427,1749173438526,-151.0,0.00028744,2]
[364640429,1749173438535,-156.0,0.00028744,2]
[364640431,1749173438544,-500.0,0.00028744,2]
[364640433,1749173438554,-500.0,0.00028744,2]
[364640435,1749173438564,-1000.0,0.00028744,2]
[364640437,1749173438574,-500.0,0.00028744,2]
[364640439,1749173438583,-500.0,0.00028744,2]
[364640441,1749173438593,-500.0,0.00028744,2]
[364640443,1749173438603,-500.0,0.00028744,2]
[364640445,1749173438612,-500.0,0.00028744,2]
[364640447,1749173438622,-151.0,0.00028744,2]
[364640449,1749173438631,-500.0,0.00028744,2]
[364640451,1749173438641,-500.0,0.00028744,2]
[364640453,1749173438650,-500.0,0.00028744,2]
[364640455,1749173438659,-500.0,0.00028744,2]
[364640457,1749173438669,-800.0,0.00028744,2]
[364640459,1749173438678,-500.0,0.00028744,2]
[364640461,1749173438687,-800.0,0.00028744,2]
[364640463,1749173438696,-800.0,0.00028744,2]
[364640465,1749173438705,-800.0,0.00028744,2]
[364640467,1749173438715,-800.0,0.00028744,2]
[364640469,1749173438724,-800.0,0.00028744,2]
[364640471,1749173438734,-800.0,0.00028744,2]
[364640473,1749173438745,-800.0,0.00028744,2]
[364640475,1749173438754,-800.0,0.00028744,2]
[364640477,1749173438764,-800.0,0.00028744,2]
[364640479,1749173438773,-800.0,0.00028744,2]
[364640481,1749173438783,-800.0,0.00028744,2]
[364640483,1749173438792,-800.0,0.00028744,2]
[364640486,1749173438801,-800.0,0.00028744,2]
[364640488,1749173438811,-800.0,0.00028744,2]
[364640489,1749173438821,-207.4,0.00028744,2]
[364640491,1749173438830,-205.0,0.0002898,2]
[364640492,1749173438840,-160.08,0.00029,2]
[364640493,1749173438849,-500.0,0.00029068,7]
[364640494,1749173438859,-200.0,0.00029094,2]
[364640495,1749173438868,-413.51421681,0.00029107,20]
[364640496,1749173438878,-210.0,0.0002915,2]
[364640497,1749173438887,-331.02,0.00029162,2]
[364640498,1749173438897,-1141.0,0.000293,2]
[364640499,1749173438907,-1600.0,0.000294,10]
[364640500,1749173438916,-1000.0,0.000294,2]
[364640501,1749173438926,-174.96622504,0.00029479,30]
[364640502,1749173438935,-3200.0,0.000295,10]
[364640503,1749173438945,-205.0,0.00029558,2]
[364640504,1749173438955,-205.0,0.0002956,2]
[364640505,1749173438964,-2500.0,0.00029598,2]
[364640506,1749173438974,-4682.25667428,0.00029599,2]
[364640508,1749173438983,-4800.0,0.000296,10]
[364640509,1749173438992,-4682.25667424,0.00029648,2]
[364640511,1749173439002,-413.51421681,0.00029693,21]
[364640513,1749173439011,-4682.25667424,0.00029698,2]
[364640515,1749173439021,-6500.0,0.000297,10]
[364640517,1749173439030,-210.0,0.000297,2]
[364640519,1749173439040,-4682.25667424,0.00029747,2]
[364640521,1749173439049,-303.11,0.00029768,2]
[364640523,1749173439058,-1000.0,0.00029779,2]
[364640525,1749173439068,-300.29,0.00029792,2]
[364640527,1749173439078,-304.61,0.00029792,2]
[364640529,1749173439088,-303.52,0.00029792,2]
[364640531,1749173439098,-301.02,0.00029793,2]
[364640533,1749173439107,-4682.25667424,0.00029796,2]
[364640535,1749173439117,-302.34,0.00029797,2]
[364640537,1749173439126,-222.0,0.000298,10]
[364640539,1749173439136,-1000.0,0.000298,2]
[364640541,1749173439146,-8100.0,0.000298,10]
[364640543,1749173439155,-1592.8502783,0.000298,2]
[364640545,1749173439165,-174.96622504,0.00029808,30]
[364640547,1749173439174,-303.82,0.00029818,2]
[364640549,1749173439185,-305.71,0.00029842,2]
[364640551,1749173439203,-4682.25667424,0.00029846,2]
[364640553,1749173439212,-1592.82,0.0002987,2]
[364640555,1749173439222,-1873.95210483,0.00029879,2]
[364640557,1749173439232,-5000.0,0.00029889,2]
[364640560,1749173439242,-4682.25667424,0.00029895,2]
[364640562,1749173439251,-1873.95210478,0.00029899,2]
[364640564,1749173439262,-299.0,0.000299,2]
[364640566,1749173439272,-2000.0,0.000299,2]
[364640568,1749173439282,-1600.0,0.000299,10]
[364640570,1749173439291,-186.05633078,0.000299,2]
[364640572,1749173439301,-186.05633077,0.000299,2]
[364640574,1749173439311,-186.05633077,0.000299,2]
[364640576,1749173439320,-1873.95210478,0.00029919,2]
[364640578,1749173439330,-4120.17975203,0.00029932,2]
[364640580,1749173439339,-13510.309687,0.00029933,2]
[364640582,1749173439348,-500.0,0.00029933,2]
[364640584,1749173439358,-36049.3286,0.00029933,2]
[364640586,1749173439368,-1873.95210478,0.00029939,2]
[364640588,1749173439377,-303.06,0.00029942,2]
[364640590,1749173439387,-4431.51022218,0.00029943,2]
[364640592,1749173439396,-239.56039488,0.00029943,2]
[364640594,1749173439406,-1000.0,0.00029943,2]
[364640596,1749173439415,-4682.25667424,0.00029944,2]
[364640598,1749173439425,-1873.95210478,0.00029959,2]
[364640601,1749173439436,-168.02529908,0.00029969,2]
[364640603,1749173439446,-154.54,0.00029969,2]
[364640605,1749173439455,-180.07707295,0.00029969,2]
[364640607,1749173439465,-150.53,0.0002997,2]
[364640609,1749173439475,-343.180781,0.00029973,5]
[364640611,1749173439484,-500.0,0.00029973,5]
[364640613,1749173439497,-166.97055979,0.00029973,5]
[364640614,1749173439509,-159.77565012,0.00029973,5]
[364640616,1749173439520,-159.77521337,0.00029973,5]
[364640619,1749173439531,-159.73983939,0.00029973,5]
[364640621,1749173439541,-500.0,0.00029973,5]
[364640623,1749173439551,-500.0,0.00029973,5]
[364640625,1749173439562,-500.0,0.00029973,5]
[364640627,1749173439572,-500.0,0.00029973,5]
[364640629,1749173439582,-500.0,0.00029973,5]
[364640631,1749173439592,-344762.77154128,0.00029976,4]
[364640633,1749173439601,-1873.95210478,0.00029978,2]
[364640635,1749173439611,-6688.42023689,0.00029979,6]
[364640637,1749173439623,-2097204.58365547,0.00029979,6]
[364640639,1749173439632,-263.8712309,0.00029979,2]
[364640641,1749173439641,-405.18986418,0.00029979,2]
[364640643,1749173439651,-509.42188232,0.00029979,2]
[364640645,1749173439660,-223.01716749,0.00029979,2]
[364640647,1749173439669,-319.67025284,0.00029979,2]
[364640649,1749173439680,-148613.406557,0.00029979,2]
[364640651,1749173439691,-26663.0617177,0.00029979,2]
[364640653,1749173439702,-162123.716244,0.00029979,2]
[364640655,1749173439712,-279962.148036,0.00029979,2]
[364640657,1749173439721,-392.50943211,0.00029989,2]
[364640659,1749173439731,-154.54,0.0002999,2]
[364640661,1749173439743,-4682.25667424,0.00029994,2]
[364640663,1749173439756,-163.2,0.00029995,2]
[364640665,1749173439768,-163.2,0.00029995,2]
[364640667,1749173439779,-163.2,0.00029995,2]
[364640669,1749173439788,-150.0,0.00029996,2]
[364640671,1749173439798,-164.96,0.00029998,2]
[364640673,1749173439808,-1873.95210478,0.00029998,2]
[364640675,1749173439817,-796.18,0.00029999,2]
[364640677,1749173439826,-460.84,0.00029999,2]
[364640679,1749173439836,-222.0,0.0003,2]
[364640681,1749173439845,-200000.0,0.0003,7]
[364640683,1749173439854,-191377.9217973,0.0003,7]
[364640686,1749173439870,-3751.25608089,0.0003,7]
[364640752,1749173440493,-326.08309697,0.0003,7]
[364640767,1749173440627,-4544.73902484,0.0003,7]
[364640768,1749173440636,-197730.0,0.0003,7]
[364640770,1749173440646,-68950.63377581,0.0003,5]
[364640772,1749173440655,-161.0,0.0003,14]
[364640774,1749173440665,-5320.75236714,0.0003,2]
[364640776,1749173440674,-220.52262368,0.0003,5]
[364640778,1749173440684,-5354.1206264,0.0003,2]
[364640780,1749173440693,-314.33,0.00030001,2]
[364640782,1749173440703,-796.18,0.00030001,2]
[364640784,1749173440713,-1873.95210478,0.00030018,2]
[364640786,1749173440722,-150.0,0.00030021,2]
[364640788,1749173440731,-200.0,0.00030032,2]
[364640790,1749173440742,-298.49312188,0.00030033,2]
[364640792,1749173440751,-763.93591344,0.00030033,2]
[364640794,1749173440760,-184307.25425844,0.00030033,2]
[364640796,1749173440770,-1873.95210478,0.00030038,2]
[364640798,1749173440779,-4682.25667424,0.00030043,2]
[364640800,1749173440789,-1873.95210478,0.00030058,2]
[364640802,1749173440798,-185.31069712,0.00030073,5]
[364640804,1749173440807,-500.0,0.00030073,5]
[364640806,1749173440817,-409.70672469,0.00030073,5]
[364640808,1749173440827,-500.0,0.00030073,5]
[364640810,1749173440836,-500.0,0.00030073,5]
[364640812,1749173440851,-500.0,0.00030073,5]
[364640814,1749173440863,-299.72389873,0.00030073,5]
[364640816,1749173440874,-159.74947058,0.00030073,5]
[364640818,1749173440884,-2000.0,0.00030099,2]
[364640820,1749173440894,-333.0,0.000301,2]
[364640822,1749173440905,-200000.0,0.000301,7]
[364640824,1749173440915,-200000.0,0.000301,7]
[364640826,1749173440924,-156.587,0.00030113,2]
[364640828,1749173440933,-215.0738,0.00030113,2]
[364640830,1749173440943,-50717.53286136,0.00030132,2]
[364640833,1749173440953,-500.0,0.00030136,7]
[364640835,1749173440962,-500.0,0.00030136,7]
[364640837,1749173440972,-7053.28,0.00030136,7]
[364640839,1749173440981,-7053.28,0.00030136,7]
[364640841,1749173440991,-7053.28,0.00030136,7]
[364640843,1749173441000,-7053.28,0.00030136,7]
[364640845,1749173441009,-7053.28,0.00030136,7]
[364640847,1749173441019,-7053.28,0.00030136,7]
[364640849,1749173441031,-7053.28,0.00030136,7]
[364640851,1749173441041,-7053.28,0.00030136,7]
[364640853,1749173441050,-7053.28,0.00030136,7]
[364640855,1749173441059,-7053.28,0.00030136,7]
[364640857,1749173441069,-7053.28,0.00030136,7]
[364640859,1749173441078,-7053.28,0.00030136,7]
[364640861,1749173441087,-7053.28,0.00030136,7]
[364640863,1749173441097,-7053.28,0.00030136,7]
[364640865,1749173441106,-7053.28,0.00030136,7]
[364640867,1749173441115,-7053.28,0.00030136,7]
[364640869,1749173441124,-7053.28,0.00030136,7]
[364640871,1749173441134,-7053.28,0.00030136,7]
[364640873,1749173441143,-7053.28,0.00030136,7]
[364640875,1749173441152,-500.0,0.00030136,7]
[364640877,1749173441161,-500.0,0.00030136,7]
[364640879,1749173441171,-500.0,0.00030136,7]
[364640881,1749173441180,-572.0,0.00030136,7]
[364640883,1749173441189,-174.96622504,0.00030137,30]
[364640885,1749173441199,-161.44,0.00030137,80]
[364640887,1749173441208,-152.27,0.00030137,2]
[364640889,1749173441217,-205.60041799,0.00030137,30]
[364640891,1749173441226,-230.15537853,0.00030137,60]
[364640893,1749173441235,-287.86961829,0.00030137,5]
[364640895,1749173441244,-164945.1035917,0.00030137,2]
[364640897,1749173441253,-1486.8063763,0.00030137,2]
[364640899,1749173441262,-114370.3495592,0.00030137,2]
[364640901,1749173441271,-8108.5986993,0.00030137,2]
[364640903,1749173441281,-24225.6000824,0.00030137,2]
[364640905,1749173441290,-1501.71643582,0.0003014,2]
[364640907,1749173441301,-500.0,0.00030142,30]
[364640909,1749173441311,-500.0,0.00030142,2]
[364640911,1749173441320,-150.0,0.00030142,2]
[364640913,1749173441330,-664.233657,0.00030142,7]
[364640915,1749173441339,-664.233657,0.00030142,7]
[364640917,1749173441349,-506.46921,0.00030142,2]
[364640919,1749173441359,-7053.28,0.00030142,7]
[364640921,1749173441369,-7053.28,0.00030142,7]
[364640923,1749173441378,-7053.28,0.00030142,7]
[364640925,1749173441388,-7053.28,0.00030142,7]
[364640927,1749173441398,-7053.33819424,0.00030142,7]
[364640929,1749173441408,-151.0,0.00030143,7]
[364640931,1749173441418,-151.0,0.00030143,7]
[364640933,1749173441427,-151.0,0.00030143,7]
[364640935,1749173441436,-230.3212672,0.00030143,2]
[364640937,1749173441445,-205.0,0.0003015,2]
[364640939,1749173441455,-333.0,0.00030153,6]
[364640941,1749173441465,-143601.1045286,0.00030158,2]
[364640943,1749173441474,-151.0,0.00030158,7]
[364640945,1749173441484,-1294.4127058,0.00030158,2]
[364640947,1749173441494,-151.0,0.00030158,7]
[364640961,1749173441712,-99667.364339,0.00030158,2]
[364640962,1749173441723,-1517.257341,0.00030158,7]
[364640963,1749173441733,-1517.257341,0.00030158,7]
[364640964,1749173441742,-1067.886122,0.00030158,7]
[364640965,1749173441752,-1067.886122,0.00030158,7]
[364640966,1749173441762,-151.0,0.00030158,7]
[364640967,1749173441772,-151.0,0.00030158,7]
[364640968,1749173441782,-203.652477,0.00030158,7]
[364640969,1749173441791,-203.652477,0.00030158,7]
[364640970,1749173441801,-151.286673,0.00030158,7]
[364640971,1749173441811,-151.0,0.00030158,7]
[364640972,1749173441823,-151.0,0.00030158,7]
[364640974,1749173441833,-333.934397,0.00030158,7]
[364640975,1749173441842,-333.934397,0.00030158,7]
[364640976,1749173441852,-151.0,0.00030158,7]
[364640977,1749173441861,-151.0,0.00030158,7]
[364640978,1749173441871,-569.07946,0.00030158,7]
[364640979,1749173441881,-569.07946,0.00030158,7]
[364640980,1749173441891,-151.0,0.00030158,7]
[364640981,1749173441901,-151.0,0.00030158,7]
[364640982,1749173441910,-395.516204,0.00030158,7]
[364640983,1749173441920,-151.0,0.00030158,7]
[364640984,1749173441930,-395.516204,0.00030158,7]
[364640985,1749173441939,-151.0,0.00030163,7]
[364640986,1749173441949,-151.0,0.00030163,7]
[364640987,1749173441959,-151.0,0.00030163,7]
[364640988,1749173441969,-151.0,0.00030163,7]
[364640989,1749173441978,-151.0,0.00030163,7]
[364640990,1749173441988,-151.0,0.00030163,7]
[364640991,1749173441997,-151.0,0.00030163,7]
[364640992,1749173442007,-151.0,0.00030163,7]
[364640993,1749173442017,-151.0,0.00030163,7]
[364640994,1749173442026,-899.668797,0.00030163,7]
[364640995,1749173442036,-899.668797,0.00030163,7]
[364640996,1749173442046,-252.968101,0.00030164,7]
[364640997,1749173442056,-153.373378,0.00030164,7]
[364640998,1749173442066,-164.818876,0.00030164,7]
[364640999,1749173442076,-156.984733,0.00030164,7]
[364641000,1749173442085,-161.072422,0.00030164,7]
[364641001,1749173442098,-155.912859,0.00030164,7]
[364641002,1749173442108,-252.968109,0.00030164,7]
[364641003,1749173442118,-239.187392,0.00030164,7]
[364641004,1749173442128,-158.160297,0.00030164,7]
[364641005,1749173442139,-1224.133033,0.00030164,7]
[364641006,1749173442149,-160.610155,0.00030164,7]
[364641007,1749173442159,-1399.780297,0.00030164,7]
[364641008,1749173442169,-153.846549,0.00030164,7]
[364641009,1749173442183,-173.073375,0.00030164,7]
[364641010,1749173442193,-160.610155,0.00030164,7]
[364641011,1749173442203,-153.846552,0.00030164,7]
[364641012,1749173442212,-246.68855974,0.00030164,7]
[364641013,1749173442222,-433.1570289,0.00030164,7]
[364641014,1749173442232,-591.34345498,0.00030164,7]
[364641015,1749173442242,-480.0,0.00030164,7]
[364641016,1749173442252,-480.90459524,0.00030164,7]
[364641017,1749173442262,-422.88565821,0.00030164,7]
[364641018,1749173442271,-503.09221108,0.00030164,7]
[364641020,1749173442281,-480.0,0.00030164,7]
[364641021,1749173442290,-480.0,0.00030164,7]
[364641022,1749173442300,-480.0,0.00030164,7]
[364641023,1749173442310,-480.0,0.00030164,7]
[364641024,1749173442320,-250.0,0.00030164,7]
[364641025,1749173442330,-480.0,0.00030164,7]
[364641027,1749173442340,-480.0,0.00030164,7]
[364641030,1749173442350,-480.0,0.00030164,7]
[364641032,1749173442360,-480.0,0.00030164,7]
[364641034,1749173442370,-480.0,0.00030164,7]
[364641035,1749173442380,-480.0,0.00030164,7]
[364641036,1749173442389,-480.0,0.00030164,7]
[364641037,1749173442399,-480.0,0.00030164,7]
[364641038,1749173442409,-489.26586176,0.00030164,7]
[364641039,1749173442419,-480.0,0.00030164,7]
[364641040,1749173442428,-487.60466884,0.00030164,7]
[364641041,1749173442438,-480.0,0.00030164,7]
[364641042,1749173442448,-480.0,0.00030164,7]
[364641043,1749173442458,-480.0,0.00030164,7]
[364641044,1749173442467,-480.0,0.00030164,7]
[364641045,1749173442477,-480.0,0.00030164,7]
[364641046,1749173442487,-480.0,0.00030164,7]
[364641047,1749173442497,-480.0,0.00030164,7]
[364641048,1749173442507,-480.0,0.00030164,7]
[364641049,1749173442517,-480.0,0.00030164,7]
[364641050,1749173442537,-486.84778779,0.00030164,7]
[364641051,1749173442547,-480.0,0.00030164,7]
[364641052,1749173442557,-480.0,0.00030164,7]
[364641053,1749173442567,-480.0,0.00030164,7]
[364641054,1749173442577,-480.0,0.00030164,7]
[364641055,1749173442586,-480.0,0.00030164,7]
[364641056,1749173442597,-480.0,0.00030164,7]
[364641057,1749173442607,-480.0,0.00030164,7]
[364641058,1749173442617,-480.0,0.00030164,7]
[364641059,1749173442627,-480.0,0.00030164,7]
[364641060,1749173442637,-480.0,0.00030164,7]
[364641061,1749173442646,-276.38642797,0.00030164,7]
[364641062,1749173442656,-480.0,0.00030164,7]
[364641063,1749173442665,-480.0,0.00030164,7]
[364641064,1749173442675,-480.0,0.00030164,7]
[364641065,1749173442684,-480.0,0.00030164,7]
[364641066,1749173442695,-486.90566093,0.00030164,7]
[364641068,1749173442705,-180.0,0.00030164,7]
[364641069,1749173442715,-480.0,0.00030164,7]
[364641070,1749173442725,-486.05106803,0.00030164,7]
[364641071,1749173442735,-480.0,0.00030164,7]
[364641072,1749173442745,-480.0,0.00030164,7]
[364641073,1749173442755,-480.0,0.00030164,7]